Cogmind - Beta 17 @@@ ROGUE MODE // 2026.07.02 @ 19:56:54 Player: Dull Result: Destroyed by H-71 Marshal with Heavy Mass Driver Performance ------------- Evolutions (6) 3000 Regions Visited (7) 1400 Robots Destroyed (35) 175 Value Destroyed (1087) 1087 Prototype IDs (24) 480 Alien Tech Used (0) 0 Bonus (808) 808 TOTAL SCORE: 6950 Bonus ------- Follower Combat Kills 55 Entered DSFs 500 Registered with UFD 300 Friendly Fire -47 Cogmind --------- Core Integrity 0/1150 Matter 167/300 Energy 100/100 System Corruption 0% Temperature Cool (0) Movement Core (50) Location -4/Factory Parts ------- > --- POWER (2) -------- (None) > --- PROPULSION (4) --- (None) > --- UTILITY (10) ----- Improved Hacking Suite > --- WEAPON (3) ------- (None) > --- INVENTORY (5) ---- Advanced Sensor Array Improved Signal Interpreter High-powered Shotgun Peak State ------------ > --- POWER ------------ Deuterium Engine Makeshift Power Source > --- PROPULSION ------- Medium Treads Overtuned Medium Treads Overtuned Medium Treads > --- UTILITY ---------- Large Storage Unit Experimental Sensor Array Improved Signal Interpreter Improved Medium Armor Plating Makeshift System Shield > --- WEAPON ----------- Gauss Cannon Gauss Cannon Makeshift Spear > --- INVENTORY -------- Advanced Sensor Array Improved Signal Interpreter High-powered Tractor Beam High-powered Shotgun Battle Cannon Gauss Cannon Grenade Launcher Missile Launcher Botcube [Rating: 59] Favorites ----------- Power Deuterium Engine Engine Deuterium Engine Propulsion Light Treads Treads Light Treads Leg Thunder Leg Wheel Armored Huge Wheel Utility Large Storage Unit Device V3-11A's Pendant Storage Large Storage Unit Processor Improved Signal Interpreter Hackware Improved Hacking Suite Protection Light Armor Plating Weapon Gauss Cannon Energy Gun Small Laser Energy Cannon Subdweller Beam Cannon Ballistic Gun Light Assault Rifle Ballistic Cannon Gauss Cannon Launcher Grenade Launcher Piercing Weapon Makeshift Spear Build | -11 -10 -10 -7 -7 -5 -5 -4 ------- Run | Yrd Mat Sub Rec Scr Fac DSF Fac Slots Evolved 12 | . . . . . 10 . 2 Power 1 | . . . . . 1 . . Propulsion 2 | . . . . . 2 . . Utility 8 | . . . . . 6 . 2 Weapon 1 | . . . . . 1 . . Parts Attached 57 | . 11 14 5 7 6 5 9 Power 7 | . 2 2 2 . 1 . . Engine 7 | . 2 2 2 . 1 . . Core . | . . . . . . . . Reactor . | . . . . . . . . Propulsion 18 | . 4 2 1 3 1 4 3 Treads 9 | . 4 2 . 2 1 . . Leg 6 | . . . . . . 4 2 Wheel 3 | . . . 1 1 . . 1 Hover . | . . . . . . . . Flight . | . . . . . . . . Utility 15 | . 2 4 . 4 3 . 2 Device 7 | . . 4 . 2 . . 1 Storage 2 | . 1 . . 1 . . . Processor 1 | . . . . . 1 . . Hackware 3 | . . . . 1 1 . 1 Protection 2 | . 1 . . . 1 . . Artifact . | . . . . . . . . Weapon 17 | . 3 6 2 . 1 1 4 Energy Gun 1 | . 1 . . . . . . Energy Cannon 2 | . . 2 . . . . . Ballistic Gun 2 | . 1 1 . . . . . Ballistic Cannon 9 | . . 3 2 . . 1 3 Launcher 2 | . 1 . . . . . 1 Special Weapon . | . . . . . . . . Impact Weapon . | . . . . . . . . Slashing Weapon . | . . . . . . . . Piercing Weapon 1 | . . . . . 1 . . Special Melee Weapon . | . . . . . . . . Unidentified Prototypes 2 | . . 2 . . . . . Parts Lost 35 | . 3 4 1 . . 15 12 Power 8 | . 1 2 1 . . 2 2 Propulsion 12 | . 1 1 . . . 7 3 Utility 5 | . . . . . . 2 3 Weapon 10 | . 1 1 . . . 4 4 Highest Loss Streak 13 | . 1 1 1 . . 13 11 To Critical Strikes . | . . . . . . . . Average Backups 12 | . 9 13 13 12 8 10 8 Power . | . . . . . . . . Propulsion 2 | . 4 3 1 1 . 1 . Utility 3 | . 1 4 4 4 3 3 3 Weapon 5 | . 2 5 6 6 5 5 5 Tool/Special . | . . . . . . . . Unused Backups 25 | . 5 8 1 7 . . 4 Power 1 | . 1 . . . . . . Propulsion 6 | . 1 3 1 1 . . . Utility 5 | . 1 . . 2 . . 2 Weapon 13 | . 2 5 . 4 . . 2 Tool/Special . | . . . . . . . . Average Slot Usage (%) 85 | . 91 91 80 90 73 55 32 Engine 9 | . 14 7 6 14 10 7 2 Treads 18 | . 25 27 5 11 16 11 . Leg 1 | . 2 . . . . 1 7 Wheel 3 | . . . 11 8 . . 2 Device 10 | . . 13 14 13 5 3 3 Storage 13 | . 14 14 14 14 5 5 4 Protection 1 | . 6 . . . 4 3 . Energy Gun 1 | . 8 . . . . . . Energy Cannon 2 | . . 6 . . . . . Ballistic Gun 5 | . 19 3 . . . . . Ballistic Cannon 16 | . . 16 28 28 11 3 3 Peak Build Rating 59 | . 8 19 25 38 59 59 52 Average Rating 18 | . 6 11 21 31 57 42 30 On Entrance 20 | 6 6 8 12 25 38 59 10 Avg Prop Armor Cover (%) 14 | . . . . 9 5 6 22 Naked Turns . | . . . . . . . . Heaviest Build 57 | 11 30 39 44 44 57 57 46 Greatest Support 53 | 20 40 40 40 50 53 53 46 Greatest Overweight (x) 8 | . . . 1 1 2 8 6 Average Overweight (x) . | . . . . . 1 . . Largest Inventory Capacity 15 | . 15 15 15 15 15 15 15 Average Capacity 14 | . 13 15 15 15 15 15 12 Most Carried 15 | . 15 15 15 15 14 15 14 Average Carried 13 | . 9 14 14 14 9 11 9 Final Capacity 15 | 8 15 15 15 15 15 15 5 Final Carried 15 | 6 15 12 14 15 9 14 3 Class Distribution -------------------- 95% | Mutant Dominant Class ---------------- Mutant | -10/Materials Mutant | -10/Subcaves Mutant | -7/Recycling Mutant | -7/Scraptown Derelict-Mutant | -5/Factory Derelict-Mutant | -5/DSF Mutant | -4/Factory Resources | -11 -10 -10 -7 -7 -5 -5 -4 ----------- Run | Yrd Mat Sub Rec Scr Fac DSF Fac Matter Collected 1155 | 200 267 296 150 70 . 13 159 Remotely 159 | . . . . . . . 159 Salvage Created 1288 | . 696 449 143 . . . . Parts 75 | . 38 35 2 . . . . Haulers Intercepted 2 | . 2 . . . . . . Recyclers Shooed 1 | . . . . . . . 1 Parts Field Recycled . | . . . . . . . . Retrieved Matter . | . . . . . . . . Parts Self-Destructed 13 | . . 13 . . . . . Prevented . | . . . . . . . . Parts Restored . | . . . . . . . . Kills | -11 -10 -10 -7 -7 -5 -5 -4 ------- Run | Yrd Mat Sub Rec Scr Fac DSF Fac Combat Hostiles Destroyed 29 | . 15 10 4 . . . . Guns 16 | . 15 1 . . . . . Cannons 10 | . . 6 4 . . . . AOE 3 | . . 3 . . . . . Classes Destroyed 9 | . 4 3 2 . . . . Hauler 2 | . 2 . . . . . . Turret 1 | . . 1 . . . . . Watcher 3 | . 3 . . . . . . Swarmer 6 | . 3 3 . . . . . Grunt 13 | . 12 . 1 . . . . Sentry 2 | . . . 2 . . . . Demolisher 1 | . . . 1 . . . . Subdweller 7 | . . 7 . . . . . Scientist 1 | . . 1 . . . . . Best Kill Streak 3 | . 3 3 2 . . . . Combat Bots Only 3 | . 3 3 2 . . . . Max Kills in Single Turn 3 | . 1 3 2 . . . . Gunslinging . | . . . . . . . . Exploded 3 | . . 3 . . . . . Melee . | . . . . . . . . Uniques/NPCs Destroyed . | . . . . . . . . Combat | -11 -10 -10 -7 -7 -5 -5 -4 -------- Run | Yrd Mat Sub Rec Scr Fac DSF Fac Hostile Shots Fired 633 | . 69 60 45 . . 243 216 Missed 212 | . 15 15 18 . . 76 88 Hits 421 | . 54 45 27 . . 167 128 Projectile 421 | . 54 45 27 . . 167 128 AOE 1 | . . . 1 . . . . Critical Strikes 3 | . . . . . . . 3 Damage Taken 6632 | . 746 780 230 . . 2673 2203 Core 2212 | . 62 52 33 . . 876 1189 Absorbed by Shields . | . . . . . . . . Regen/Repaired (Parts) 89 | . 89 . . . . . . Core Remaining (%) 51 | 100 . . . 41 . 12 . Volleys Fired 172 | . 79 73 8 . . 1 11 Largest 3 | . 2 2 2 . . 1 3 Hottest 120 | . 60 80 80 . . 40 120 Shots Fired 285 | . 152 87 16 . . 1 29 Gun 161 | . 151 10 . . . . . Cannon 121 | . . 76 16 . . 1 28 Launcher 3 | . 1 1 . . . . 1 Special . | . . . . . . . . Kinetic 178 | . 101 32 16 . . 1 28 Thermal 104 | . 50 54 . . . . . Explosive 3 | . 1 1 . . . . 1 Electromagnetic . | . . . . . . . . Robot Hit Streak 21 | . 12 21 7 . . . 5 Robot Miss Streak 5 | . 3 2 1 . . 1 5 Penetration Max . | . . . . . . . . Secondary Targets . | . . . . . . . . Shots Hit Robots 189 | . 110 53 12 . . . 14 Core Hits 71 | . 43 16 6 . . . 6 Critical Kills . | . . . . . . . . Critical Parts Destroyed . | . . . . . . . . Critical Strikes 2 | . . . . . . . 2 Blast 2 | . . . . . . . 2 Melee Attacks 1 | . . . . . . 1 . Impact . | . . . . . . . . Slashing . | . . . . . . . . Piercing 1 | . . . . . . 1 . Sneak Attacks . | . . . . . . . . Combat Hostiles . | . . . . . . . . Follow-up Attacks . | . . . . . . . . Damage Inflicted 3471 | . 1154 1354 337 . . 30 596 Guns 1247 | . 1154 93 . . . . . Cannons 1887 | . . 1159 337 . . 29 362 Explosions 331 | . . 102 . . . . 229 Melee . | . . . . . . . . Ramming 6 | . . . . . . 1 5 Kinetic 1697 | . 735 234 337 . . 29 362 Thermal 1437 | . 419 1018 . . . . . Explosive 331 | . . 102 . . . . 229 Electromagnetic . | . . . . . . . . Impact . | . . . . . . . . Slashing . | . . . . . . . . Piercing . | . . . . . . . . Highest Corruption 1 | . . . . . . 1 . Average Corruption 1 | . . . . . . 1 . Corruption Purged . | . . . . . . . . Corruption Blocked . | . . . . . . . . Overload Shots . | . . . . . . . . Overflow Damage 43 | . . 28 . . . . 15 Projectiles 13 | . . 13 . . . . . Explosions 30 | . . 15 . . . . 15 Melee . | . . . . . . . . Knockbacks 13 | . . 5 . . . . 8 Impact 1 | . . . . . . . 1 Kinetic 12 | . . 5 . . . . 7 Secondary . | . . . . . . . . Self-Inflicted Damage 26 | . . . . . . . 26 Shots 1 | . . . . . . . 1 Rammed 3 | . . . . . . 1 2 Targets Rammed 3 | . . . . . . 1 2 Kicked . | . . . . . . . . Crushed . | . . . . . . . . Highest Temperature 266 | . 266 1 90 . . 44 15 Average Temperature 59 | . 68 1 43 . . 12 7 Received Heat Transfer 1521 | . 378 57 60 . . 981 45 Effects 1 | . 1 . . . . . . Interference 1 | . 1 . . . . . . Siege Activations . | . . . . . . . . Martial Activations . | . . . . . . . . Shielding Activations . | . . . . . . . . Robots Disrupted . | . . . . . . . . Combat Hostiles . | . . . . . . . . Robots Corrupted . | . . . . . . . . Combat Hostiles . | . . . . . . . . Parts Fried . | . . . . . . . . Impact Corruptions . | . . . . . . . . Robots Melted . | . . . . . . . . Combat Hostiles . | . . . . . . . . Parts Melted 4 | . 2 2 . . . . . Heat Transferred 2345 | . 925 1420 . . . . . Parts Sabotaged . | . . . . . . . . Parts Stolen . | . . . . . . . . Parts Stripped . | . . . . . . . . Power Chain Reactions . | . . . . . . . . Alert | -11 -10 -10 -7 -7 -5 -5 -4 ------- Run | Yrd Mat Sub Rec Scr Fac DSF Fac Maximum Alert Level . | . . . . . . . . Low Security (%) 100 | . 100 . 100 . 100 100 100 Level 1 . | . . . . . . . . Level 2 . | . . . . . . . . Level 3 . | . . . . . . . . Level 4 . | . . . . . . . . Level 5 . | . . . . . . . . High Security . | . . . . . . . . Max Security . | . . . . . . . . Peak Influence 79 | . 79 . 45 . 5 15 67 Initial . | . . . . . . . . Average 13 | . 22 . 6 . . 2 3 Influence Increases 871 | . 445 171 123 . 5 30 97 Destroy 0b10 Robot/C 500 | . 300 120 80 . . . . Destroy 0b10 Robot/NC 25 | . 25 . . . . . . Destroy Leader 60 | . 60 . . . . . . Allied During Kill 16 | . . 6 10 . . . . Successful Hack 41 | . 24 . 12 . 5 . . Disable Machine 15 | . . . 15 . . . . Destroy Structure 34 | . 6 . 6 . . . 22 Lose Combat Pursuer 180 | . 30 45 . . . 30 75 Influence Decreases 822 | . 445 171 123 . 5 30 48 Time Decay 710 | . 417 141 123 . 5 . 24 Lost Part 92 | . 28 10 . . . 30 24 Lost Ally 20 | . . 20 . . . . . Squads Dispatched 13 | . 1 . . . . 1 11 Investigation 2 | . . . . . . . 2 Extermination 1 | . . . . . . . 1 Reinforcement 7 | . 1 . . . . 1 5 Assault 2 | . . . . . . . 2 Garrison 1 | . . . . . . . 1 Intercept . | . . . . . . . . Searches Triggered . | . . . . . . . . Construction Impeded . | . . . . . . . . Haulers Reinforced . | . . . . . . . . Active Scanning Responses . | . . . . . . . . Cargo Convoy Interrupts . | . . . . . . . . Stealth | -11 -10 -10 -7 -7 -5 -5 -4 --------- Run | Yrd Mat Sub Rec Scr Fac DSF Fac Distress Signals 3 | . 1 . . . . . 2 Communications Jammed . | . . . . . . . . Distress Signals . | . . . . . . . . Times Spotted 73 | . 28 18 4 . . 9 14 Peak Tracking Total 8 | . 4 5 2 . . 8 7 Tactical Retreats 6 | . 2 1 . . . 2 1 Traps | -11 -10 -10 -7 -7 -5 -5 -4 ------- Run | Yrd Mat Sub Rec Scr Fac DSF Fac Traps Triggered 6 | . 1 . . . 1 2 2 Indirectly . | . . . . . . . . Trap Hack Attempts . | . . . . . . . . Triggered . | . . . . . . . . Disarmed 6 | . 6 . . . . . . Reprogrammed . | . . . . . . . . Reused . | . . . . . . . . Traps Extracted . | . . . . . . . . Installed . | . . . . . . . . Triggered . | . . . . . . . . Machines | -11 -10 -10 -7 -7 -5 -5 -4 ---------- Run | Yrd Mat Sub Rec Scr Fac DSF Fac Machines Disabled 4 | . . 3 1 . . . . Max in Single Turn 1 | . . 1 1 . . . . Garrison Access 1 | . . . . . . . 1 Machines Repaired . | . . . . . . . . Machines Dismantled . | . . . . . . . . Machines Sabotaged . | . . . . . . . . Overloaded Fab Kills . | . . . . . . . . Hacking | -11 -10 -10 -7 -7 -5 -5 -4 --------- Run | Yrd Mat Sub Rec Scr Fac DSF Fac Machines Accessed 18 | . 4 1 5 2 2 . 4 Terminals 11 | . 3 . 4 . 2 . 2 Fabricators . | . . . . . . . . Repair Stations 2 | . 1 . . . . . 1 Recycling Units 1 | . . . 1 . . . . Scanalyzers . | . . . . . . . . Garrison Access 1 | . . . . . . . 1 Total Hacks 51 | . 11 1 9 12 5 . 13 Successful 27 | . 7 1 3 12 3 . 1 Failed 24 | . 4 . 6 . 2 . 12 Catastrophic 2 | . 1 . . . 1 . . Database Lockouts . | . . . . . . . . Manual 18 | . 8 . . . 2 . 8 Terminals 27 | . 9 . 5 . 5 . 8 Fabricators . | . . . . . . . . Repair Stations 4 | . 2 . . . . . 2 Recycling Units 4 | . . . 4 . . . . Scanalyzers . | . . . . . . . . Garrison Access 3 | . . . . . . . 3 Terminal Hacks 20 | . 3 1 2 12 2 . . Record 4 | . . . . 4 . . . Part Schematic 1 | . . . 1 . . . . Robot Analysis 10 | . 2 . . 8 . . . Open DSF 1 | . . . . . 1 . . Locate Traps 1 | . . . . . 1 . . Disarm Traps 1 | . 1 . . . . . . Zone Layout 1 | . . . 1 . . . . Proto ID Catalog 1 | . . 1 . . . . . Fabricator Hacks . | . . . . . . . . Repair Station Hacks 3 | . 2 . . . . . 1 Scan Component 1 | . 1 . . . . . . Repair 1 | . 1 . . . . . . Refit 1 | . . . . . . . 1 Recycling Unit Hacks 1 | . . . 1 . . . . Retrieve Components 1 | . . . 1 . . . . Scanalyzer . | . . . . . . . . Garrison Access Hacks . | . . . . . . . . Unauthorized Hacks 3 | . 2 . . . 1 . . Terminals 3 | . 2 . . . 1 . . Botnet 3 | . 2 . . . 1 . . Fabricators . | . . . . . . . . Repair Stations . | . . . . . . . . Recycling Units . | . . . . . . . . Scanalyzers . | . . . . . . . . Garrison Access . | . . . . . . . . Data Cores Recovered . | . . . . . . . . Used . | . . . . . . . . Hacking Detections 12 | . 4 . 2 . 2 . 4 Full Trace Events 2 | . . . . . . . 2 Feedback Events . | . . . . . . . . Feedback Blocked . | . . . . . . . . Robot Schematics Acquired . | . . . . . . . . Robots Built . | . . . . . . . . Authchips . | . . . . . . . . Time . | . . . . . . . . Total Robot Build Rating . | . . . . . . . . Part Schematics Acquired 1 | . . . 1 . . . . Parts Built . | . . . . . . . . Authchips . | . . . . . . . . Time . | . . . . . . . . Total Part Build Rating . | . . . . . . . . Part Studies Acquired . | . . . . . . . . Parts Repaired 1 | . 1 . . . . . . Time 26 | . 26 . . . . . . Parts Recycled . | . . . . . . . . Recycled Matter . | . . . . . . . . Retrieved Matter . | . . . . . . . . Retrieved Components . | . . . . . . . . Parts Scanalyzed . | . . . . . . . . Part Schematics Acquired . | . . . . . . . . Parts Damaged . | . . . . . . . . Bothacking | -11 -10 -10 -7 -7 -5 -5 -4 ------------ Run | Yrd Mat Sub Rec Scr Fac DSF Fac Used RIF Installer . | . . . . . . . . Robots Hacked . | . . . . . . . . Non-combat . | . . . . . . . . Combat . | . . . . . . . . Robot Hacks Applied . | . . . . . . . . Relay Couplers Released 2 | . . . . . . . 2 Machine Destruction 2 | . . . . . . . 2 Fabnet Peak Effective % . | . . . . . . . . Robots Rewired 1 | . . . 1 . . . . Allies Hacked . | . . . . . . . . Hacks Repelled . | . . . . . . . . Allies | -11 -10 -10 -7 -7 -5 -5 -4 -------- Run | Yrd Mat Sub Rec Scr Fac DSF Fac Total Allies 7 | . . 6 1 . . . . Largest Group 5 | . . 5 5 . . . . Highest-Rated Group 95 | . . 95 95 . . . . Highest-Rated Ally 19 | . . 19 19 . . . . Initial UFD Resources 41 | . . . . . 37 37 41 Total Orders . | . . . . . . . . Ally Attacks 27 | . . 20 7 . . . . Total Damage 421 | . . 280 141 . . . . Kills 3 | . . 3 . . . . . Allies Corrupted . | . . . . . . . . Allies Melted . | . . . . . . . . Intel | -11 -10 -10 -7 -7 -5 -5 -4 ------- Run | Yrd Mat Sub Rec Scr Fac DSF Fac Active Infowar (turns) 3922 | . . 1714 . 1580 135 80 413 Sensors 2208 | . . . . 1580 135 80 413 Seismic 1714 | . . 1714 . . . . . Robot Analysis Total 10 | . 2 . . 8 . . . Derelict Logs Recovered . | . . . . . . . . Drone Launches . | . . . . . . . . Drone Recoveries . | . . . . . . . . Exploration | -11 -10 -10 -7 -7 -5 -5 -4 ------------- Run | Yrd Mat Sub Rec Scr Fac DSF Fac Turns Passed 8724 | . 1641 3321 822 2135 135 133 537 Spaces Moved 5273 | 1 718 1768 612 1570 62 61 481 Core 198 | . . . . . . 2 196 Treads 3111 | . 634 1768 92 513 62 42 . Legs 179 | 1 84 . . . . 17 77 Wheels 1785 | . . . 520 1057 . . 208 Hover . | . . . . . . . . Flight . | . . . . . . . . Fastest Speed 50 | 120 120 160 115 115 200 120 50 Average Speed 139 | 120 155 160 121 125 207 166 92 Slowest Speed 450 | 120 160 160 160 160 320 450 350 Overloaded Moves . | . . . . . . . . Propulsion Burnouts . | . . . . . . . . Robots Hopped . | . . . . . . . . Potential Cave-ins . | . . . . . . . . Cave-ins Triggered . | . . . . . . . . Exploration Rate (%) 54 | 2 90 86 87 93 2 58 16 Regions Visited 7 Branch Regions 3 Pre-discovered Areas 1 | . . 1 . . . . . Known Exits Taken 1 | . . . . . 1 . . Unknown Exits Taken 5 | 1 1 1 1 1 . . . Scrap Searched 14 | . . 5 . 9 . . . Spaces Dug 5 | . 5 . . . . . . Terrain Destroyed 28 | . 5 7 6 . . . 10 Melee . | . . . . . . . . Projectile 16 | . . 2 6 . . . 8 AOE 12 | . 5 5 . . . . 2 Terrain Rammed . | . . . . . . . . Walls Destroyed . | . . . . . . . . Machines Disabled . | . . . . . . . . Actions | -11 -10 -10 -7 -7 -5 -5 -4 --------- Run | Yrd Mat Sub Rec Scr Fac DSF Fac Total 6407 | . 1106 2177 674 1738 69 90 553 Wait 761 | . 278 287 26 133 . 9 28 Move 5266 | . 717 1767 611 1569 61 60 481 Hop . | . . . . . . . . Pick Up 63 | . 17 12 5 15 1 8 5 Fast Attach 10 | . 1 3 1 4 . 1 . Attach 38 | . 6 5 2 1 7 4 13 Detach 4 | . . 1 . . . 1 2 Swap 18 | . 4 10 2 2 . . . Drop 45 | . 4 19 5 14 . . 3 Fire 172 | . 79 73 8 . . 1 11 Melee 1 | . . . . . . 1 . Ram 3 | . . . . . . 1 2 Kick . | . . . . . . . . Crush . | . . . . . . . . Escape Stasis 12 | . . . . . . 4 8 Rewire 14 | . . . 14 . . . . Trap . | . . . . . . . . Miscellaneous . | . . . . . . . . Route ------- -11/Scrapyard -10/Materials (discovered 6 exits: [*Mat x3] / [*Min x2] / *Sub) -10/Subcaves (discovered 2 exits: [*Mat] / *Rec) -7/Recycling -7/Scraptown (discovered 2 exits: *Fac x2) -5/Factory -5/DSF -4/Factory History --------- Turn | Location | Event 1 | -11/Scrapyard | Discovered new exit (range 0) 1 | -11/Scrapyard | Entered Materials 187 | -10/Materials | Discovered new exit (range 8) 293 | -10/Materials | Discovered new exit (range 15) 312 | -10/Materials | Build established: Mutant 454 | -10/Materials | Discovered new exit (range 4) 816 | -10/Materials | Discovered new exit (range 13) 960 | -10/Materials | Repaired Lgt. Treads 1030 | -10/Materials | Discovered new exit (range 14) 1519 | -10/Materials | Discovered new exit (range 15) 1642 | -10/Materials | Entered Subcaves 1643 | -10/Subcaves | Approached by a straggling Scientist 1666 | -10/Subcaves | Discovered new exit (range 15) 2309 | -10/Subcaves | Learned location of Zion (-7) 2309 | -10/Subcaves | Met a Zionite searching for "candidates" 2565 | -10/Subcaves | Shifting Twisted Machinery released Battle Cannon 2738 | -10/Subcaves | Shifting Twisted Machinery released Battle Cannon 2765 | -10/Subcaves | A swath of the cavern ceiling suddenly collapsed 3421 | -10/Subcaves | Visited triangular shrine 3431 | -10/Subcaves | Found Prototype Device 3432 | -10/Subcaves | Identified V3-11A's Pendant 3437 | -10/Subcaves | Befriended Subdweller 3550 | -10/Subcaves | Discovered new exit (range 10) 3701 | -10/Subcaves | Shifting Twisted Machinery released Battle Cannon 3715 | -10/Subcaves | Shifting Twisted Machinery released Battle Cannon 3990 | -10/Subcaves | Visited Clippyterm 4092 | -10/Subcaves | Befriended Subdweller 4097 | -10/Subcaves | Befriended Subdweller 4107 | -10/Subcaves | Befriended Subdweller 4107 | -10/Subcaves | Befriended Subdweller 4129 | -10/Subcaves | A swath of the cavern ceiling suddenly collapsed 4187 | -10/Subcaves | Befriended Subdweller 4429 | -10/Subcaves | Visited 4L-MR0's lab 4448 | -10/Subcaves | Found Prototype Leg 4576 | -10/Subcaves | Identified Arachnoskeleton 4599 | -10/Subcaves | Found Prototype Device 4600 | -10/Subcaves | Identified Sfc. Transmogrifier 4963 | -10/Subcaves | Entered Recycling 4963 | -7/Recycling | Accompanied by 5 allies 5480 | -7/Recycling | Lost 3 allies 5540 | -7/Recycling | Scanned before Scraplab entrance 5615 | -7/Recycling | Core integrity fell below 50% 5637 | -7/Recycling | Lost 3 allies 5771 | -7/Recycling | Entered Scraplab 5782 | -7/Recycling | Discovered new exit (range 2) 5785 | -7/Recycling | Entered Scraptown 6209 | -7/Scraptown | Delivered V3-11A's Pendant to T0-NE2 in exchange for information 6508 | -7/Scraptown | Visited Symbiants 6535 | -7/Scraptown | Visited Bundlers 6603 | -7/Scraptown | Visited The Evicted 6639 | -7/Scraptown | Visited Shadow of the Wyrm 6703 | -7/Scraptown | Visited Cyclists 6781 | -7/Scraptown | Discovered new exit (range 3) 6892 | -7/Scraptown | Visited Comm Corps 6954 | -7/Scraptown | Visited CPS Storage 7017 | -7/Scraptown | Visited UFD Registry 7017 | -7/Scraptown | Registered with UFD as "Gausssplitter" 7055 | -7/Scraptown | Visited Modified Component R&D 7232 | -7/Scraptown | Visited LU-1G1's Boring Crew 7260 | -7/Scraptown | Visited Infowarlord's Domain 7269 | -7/Scraptown | Found Exp. Sensor Array 7299 | -7/Scraptown | Visited Curators Association 7353 | -7/Scraptown | Visited Analyses Database 7418 | -7/Scraptown | Visited Derelict Rescue Squad 7472 | -7/Scraptown | Delivered Scrap Shield to a Scientist 7612 | -7/Scraptown | Visited Junk Repository 7658 | -7/Scraptown | Visited Junk Repository 7703 | -7/Scraptown | Visited Botcube Research 7715 | -7/Scraptown | Found Botcube 7913 | -7/Scraptown | Discovered new exit (range 5) 7920 | -7/Scraptown | Entered Factory 7920 | -5/Factory | Evolved 10 slots: Power x1, Propulsion x2, Utility x6, Weapon x1 8053 | -5/Factory | Identified exit to DSF 8055 | -5/Factory | Entered DSF 8102 | -5/DSF | Additional patrols routed to DSF 8156 | -5/DSF | Discovered new exit (range 15) 8176 | -5/DSF | Core integrity fell below 50% 8185 | -5/DSF | Core integrity fell below 20% 8187 | -5/DSF | Identified exit to Factory 8188 | -5/DSF | Entered Factory 8188 | -4/Factory | Evolved 2 slots: Utility x2 8218 | -4/Factory | Lost 13 parts (2p7n2u2w) 8617 | -4/Factory | Core integrity fell below 50% 8642 | -4/Factory | Lost 11 parts (2p3n2u4w) 8717 | -4/Factory | Core integrity fell below 20% 8725 | -4/Factory | Destroyed by H-71 Marshal with Heavy Mass Driver Last Messages --------------- 08687_ T-07 Excavator knocked back. 08701_ ALERT: Potential suspicious activity detected, Programmers report to Factory Zone 2S. 08702_ O-16 Technician: "IFF HANDSHAKE FAILED. SECURING TERMINAL." 08704_ O-16 Technician sends out distress signal. 08704_ Connecting with Terminal... 08705_ O-16 Technician uses terminal to summon reinforcements. 08705_ ALERT: Hostiles spotted, dispatching reinforcements to Terminal F005. 08705_ O-16 Technician locks terminal. 08707_ Slug penetrates Wall. 08710_ Penetrated by Slug. 08717_ Knocked back. 08723_ Imp. Signal Interpreter destroyed. 08723_ Critical hit (Blast). 08723_ Knocked back. Map ----- +----------------------------------------------------+ | ?????????????????????????????????????????????????? | | ????????"????????????????????????????????????????? | | ????????""???????????????????????????????????????? | | ???????? ???????????????????????????????????????? | | ???????? ???????????????????????????????????????? | | ???????? ??????????????????????????????????????? | | ???????? ???????????????????????????????????????? | | ???????? ??#######??????????????????????????????? | | #####+## ???? ???????????????????????????????? | | ? ????" F" ???????????????????????????????? | | ??# #?????"""??#?????????????????????????????? | | ??# #????? ?? ?????????????????????????????? | | ### #???###+### ?????????????????????????????? | | ##### # "????????????????????????????? | | # "????????????????????????????? | | """ # ????????????????????????????? | | "T" ! # "??? ????????????????????????? | | ##### # """ !#???????????????????????? | | !! ##???## ## """ #???????????????????????? | | *! #?????# ## #???????????????????????? | | * #?????# ## """ !#???????????????????????? | | #?????# ## """ #???????#???????????????? | | #?????# ## """ #????? ##??????????????? | | #?????# ## #??? #??????????????? | | ### #?????# ##+####### #??????????????? | | #?# +?????# % % @ #??????????????? | | #?# #?????# k H #??????????????? | | #?# #?????# % #??????????????? | | #?# #?????######+##;#### #??????????????? | | #?# #????????? #?? !#??????????????? | | #?# #???????# #???#######??????????????? | | #?? #???????# #????????????????????????? | | +#?? #???????# #????????????????????????? | | ???? ????????# ! #????????????????????????? | | ???????????????# #????????????????????????? | | ???????????????# #????????????????????????? | | ???????????????# #????????????????????????? | | ???????????????# #????????????????????????? | | ???????????????##########????????????????????????? | | ?????????????????????????????????????????????????? | | ?????????????????????????????????????????????????? | | ?????????????????????????????????????????????????? | | ?????????????????????????????????????????????????? | | ?????????????????????????????????????????????????? | | ?????????????????????????????????????????????????? | | ?????????????????????????????????????????????????? | | ?????????????????????????????????????????????????? | | ?????????????????????????????????????????????????? | | ?????????????????????????????????????????????????? | | ?????????????????????????????????????????????????? | +----------------------------------------------------+ Best States ------------- Heat Dissipation 43 Energy Generation 24 Energy Capacity 345 Matter Stores 300 Matter Capacity 300 Sight Range 16 Robot Scan Range 20 Terrain Scan Density 10 Armor Coverage 225 Evasion (%) 70 Recoil Reduction 2 Offensive Hacking 12 Defensive Hacking 11 Item Schematics ----------------- Hpw. Shock Rifle | -7/Recycling | Hacked Robot Schematics ------------------ None Fabricated ------------ Nothing Repaired ---------- Lgt. Treads | 36% | -10/Materials Studied --------- None Alien Tech Used ----------------- None Achievements -------------- SUBSUB Challenges ------------ None Game ------ Seed TechArchitectMiniperforator Manual? 0 Play Time 00:54:19 Cumulative 158.3 hours Start 2026.07.02 @ 19:01:36 End 2026.07.02 @ 19:56:54 Sessions 1 Manual Loads 0 Difficulty Rogue Special Mode None Game No. 218 Rogue 218 Adventurer 0 Explorer 0 Win Type - Total 1 Types 1/0/0/0/0/0/0/0/0/0 Lore% 52 Gallery% 54 Achievement% 32 Wizard Run 0 Options --------- Layout 1 ASCII 0 Keyboard 0 Movement Mouse Keybinds 1 Fullscreen 1 Font 24/Smallcaps Map View 50x35 Zoom Use 0% Tactical HUD 1 Map Filters NONE Filters NONE Steam 1 RUN: 640900af-6a07-4881-898e-a752e71c9d75